Cogmind - Beta 15 @@@ ROGUE MODE // 2025.08.30 @ 00:33:55 Player: H3-RMN Result: Escaped! Performance ------------- Evolutions (9) 4500 Regions Visited (27) 5400 Robots Destroyed (332) 1660 Value Destroyed (12951) 12951 Prototype IDs (65) 1300 Alien Tech Used (0) 0 Bonus (9857) 9857 TOTAL SCORE: 35668 Bonus ------- High Alert Combat Kills 2160 Follower Combat Kills 2103 Entered Garrisons 800 Used RIF Installer 1000 Entered DSFs 1500 Aligned with FarCom 300 Win 3000 Friendly Fire -1006 Cogmind --------- Core Integrity 1575/1600 Matter 185/300 Energy 1287/1300 System Corruption 0% Temperature Cool (9) Movement Walking (120) Location To Epsilon Eridani Parts ------- > --- POWER (3) -------- Hybrid Deuterium Engine Reinforced Quantum Reactor Improved Quantum Reactor > --- PROPULSION (7) --- Myomer Leg Heavy Armored Exoskeleton Enhanced Biometal Leg Centrium Leg > --- UTILITY (11) ----- Advanced Heat Sink Advanced Cooling System High-capacity Storage Unit Advanced Target Analyzer Experimental Core Analyzer Advanced Weapon Cycler Advanced Transmission Jammer Improved Reaction Control System Layered Medium Armor Plating Graphene Brace Relay Coupler [NC] (21) > --- WEAPON (4) ------- Advanced Plasma Rifle Compact HERF Cannon Enhanced Nova Cannon Graviton Cannon > --- INVENTORY (20) --- Quantum Reactor Light Quantum Reactor Heavy Armored Exoskeleton Heavy Armor Plating Authchip [Propulsion] HERF Cannon Firepult Enhanced Hardcell Cannon Graviton Cannon Micro-nuke Launcher Hellfire Missile Launcher Guided Micro-nuke Launcher Advanced Remote Datajack Multitool Peak State ------------ > --- POWER ------------ Quantum Reactor Reinforced Quantum Reactor Improved Quantum Reactor > --- PROPULSION ------- Myomer Leg Heavy Armored Exoskeleton Enhanced Biometal Leg Centrium Leg > --- UTILITY ---------- Advanced Heat Sink Advanced Cooling System High-capacity Storage Unit Advanced Target Analyzer Experimental Core Analyzer Advanced Weapon Cycler Advanced Transmission Jammer Improved Reaction Control System Layered Medium Armor Plating Authchip [Propulsion] Relay Coupler [NC] > --- WEAPON ----------- Advanced Plasma Rifle Compact HERF Cannon Enhanced Nova Cannon Graviton Cannon > --- INVENTORY -------- Quantum Reactor Light Quantum Reactor Heavy Armored Exoskeleton Heavy Armor Plating Graphene Brace Authchip [Propulsion] Firepult Enhanced Hardcell Cannon Graviton Cannon Micro-nuke Launcher Hellfire Missile Launcher Guided Micro-nuke Launcher Advanced Remote Datajack Multitool [Rating: 194] Favorites ----------- Power Cooled Deuterium Engine Engine Cooled Deuterium Engine Power Core Light Fission Core Reactor Reinforced Quantum Reactor Propulsion Aluminum Leg Leg Aluminum Leg Hover Unit Backup Propulsion I Utility High-capacity Storage Unit Device Advanced Heat Sink Storage High-capacity Storage Unit Processor Core Analyzer Hackware Relay Coupler [NC] Protection Light Armor Plating Weapon Minigun Energy Gun Gatling Laser Energy Cannon Enhanced Nova Cannon Ballistic Gun Minigun Ballistic Cannon Graviton Cannon Launcher Rocket Launcher Special Weapon Multitool Slashing Weapon Makeshift Sword Special Melee Weapon Improved Datajack Build | -11 -10 -10 -9 -9 -9 -8 -8 -8 -8 -8 -7 -7 -6 -6 -6 -6 -5 -5 -5 -4 -4 -4 -4 -3 -3 -2 -1 ------- Run | Yrd Mat Min Mat Min Exi Min Mat Gar Mat Gar Fac DSF Fac Gar Fac DSF Fac Was Fac Fac Was Fac DSF Res Gar Res Acc Slots Evolved 18 | . . . 2 . . . 2 . . . 2 . 2 . . . 2 . . 2 . . . 2 . 2 2 Power 2 | . . . . . . . . . . . . . 1 . . . . . . . . . . . . 1 . Propulsion 5 | . . . 1 . . . 1 . . . . . . . . . 1 . . 1 . . . . . . 1 Utility 9 | . . . . . . . 1 . . . 1 . 1 . . . 1 . . 1 . . . 2 . 1 1 Weapon 2 | . . . 1 . . . . . . . 1 . . . . . . . . . . . . . . . . Parts Attached 226 | 7 18 11 23 3 3 6 30 9 1 2 6 13 9 14 2 2 2 2 6 7 9 . 3 3 3 25 7 Power 21 | 1 2 2 3 . . . 2 . . . 1 . 1 1 . . . . . . 2 . . . . 5 1 Engine 11 | 1 2 2 3 . . . 2 . . . 1 . . . . . . . . . . . . . . . . Core 1 | . . . . . . . . . . . . . 1 . . . . . . . . . . . . . . Reactor 9 | . . . . . . . . . . . . . . 1 . . . . . . 2 . . . . 5 1 Propulsion 54 | 2 3 4 9 . . 5 11 1 1 . . 4 2 1 . . 2 1 2 1 2 . . . . 2 1 Treads . | . . . . . . . . . . . . . . . . . . . . . . . . . . . . Leg 54 | 2 3 4 9 . . 5 11 1 1 . . 4 2 1 . . 2 1 2 1 2 . . . . 2 1 Wheel . | . . . . . . . . . . . . . . . . . . . . . . . . . . . . Hover . | . . . . . . . . . . . . . . . . . . . . . . . . . . . . Flight . | . . . . . . . . . . . . . . . . . . . . . . . . . . . . Utility 90 | 2 9 . 4 1 1 1 9 5 . 2 1 7 5 8 2 2 . 1 4 3 3 . 3 1 3 9 4 Device 34 | 1 1 . . 1 . 1 1 2 . . 1 3 . 2 . 2 . 1 3 3 3 . 1 1 1 4 2 Storage 9 | 1 2 . . . 1 . 2 . . . . . . 1 . . . . 1 . . . 1 . . . . Processor 5 | . . . . . . . . 1 . . . 1 . 1 . . . . . . . . 1 . . 1 . Hackware 18 | . . . 1 . . . . . . 2 . 1 5 2 2 . . . . . . . . . 1 3 1 Protection 24 | . 6 . 3 . . . 6 2 . . . 2 . 2 . . . . . . . . . . 1 1 1 Artifact . | . . . . . . . . . . . . . . . . . . . . . . . . . . . . Weapon 61 | 2 4 5 7 2 2 . 8 3 . . 4 2 1 4 . . . . . 3 2 . . 2 . 9 1 Energy Gun 15 | . . 1 1 . . . 3 1 . . 2 . 1 1 . . . . . 2 1 . . 2 . . . Energy Cannon 7 | . . 1 . . . . 1 . . . . . . . . . . . . 1 1 . . . . 3 . Ballistic Gun 25 | 2 2 3 6 1 . . 3 2 . . 2 1 . 2 . . . . . . . . . . . 1 . Ballistic Cannon 3 | . . . . . . . . . . . . . . . . . . . . . . . . . . 3 . Launcher 6 | . 1 . . 1 . . 1 . . . . . . . . . . . . . . . . . . 2 1 Special Weapon 3 | . 1 . . . . . . . . . . 1 . 1 . . . . . . . . . . . . . Impact Weapon . | . . . . . . . . . . . . . . . . . . . . . . . . . . . . Slashing Weapon 1 | . . . . . 1 . . . . . . . . . . . . . . . . . . . . . . Piercing Weapon . | . . . . . . . . . . . . . . . . . . . . . . . . . . . . Special Melee Weapon 1 | . . . . . 1 . . . . . . . . . . . . . . . . . . . . . . Unidentified Prototypes 14 | . . . 3 1 . . 3 . . . . . . 1 . . . . 1 . 1 . . 1 . 2 1 Corrupted Parts 2 | . . . . . . . . . . . . . . . . . . . 1 . . . 1 . . . . System Corruption 4 | . . . . . . . . . . . . . . . . . . . 3 . . . 1 . . . . Parts Lost 40 | . 9 1 1 . . . 5 3 1 . . 3 . 1 . . . . . 2 . . . . . 14 . Power 5 | . 1 1 . . . . . . . . . . . . . . . . . . . . . . . 3 . Propulsion 9 | . 2 . . . . . 1 1 1 . . 2 . . . . . . . 1 . . . . . 1 . Utility 12 | . 4 . 1 . . . . 1 . . . 1 . 1 . . . . . . . . . . . 4 . Weapon 14 | . 2 . . . . . 4 1 . . . . . . . . . . . 1 . . . . . 6 . Highest Loss Streak 6 | . 3 1 1 . . . 3 2 1 . . 1 . 1 . . . . . 1 . . . . . 6 . To Critical Strikes . | . . . . . . . . . . . . . . . . . . . . . . . . . . . . Average Backups 15 | 1 11 14 14 14 14 14 14 18 18 18 18 18 17 16 14 15 16 15 15 14 14 14 14 13 15 14 13 Power . | . . . . . . . . 2 2 2 1 1 1 1 1 1 1 . . 1 . 1 1 1 1 1 2 Propulsion 1 | . . 1 1 1 1 1 1 3 1 2 2 1 2 3 3 3 2 3 2 2 2 3 2 2 2 2 1 Utility 6 | . 5 6 6 7 8 8 7 7 9 8 9 9 7 5 4 5 6 5 6 5 5 5 6 5 5 4 2 Weapon 4 | . 3 4 4 4 4 3 3 4 5 5 4 6 5 4 4 4 4 5 4 3 3 3 3 3 5 5 6 Tool/Special . | . . . . . . . . . . . . . . . . . . . . . . . . . . . . Unused Backups 39 | . 6 2 4 2 . . 4 3 . . 2 3 . . . . . 1 . . 1 . . 1 . 3 7 Power 3 | . . . . . . . . . . . . . . . . . . . . . . . . . . . 3 Propulsion 7 | . 3 . . . . . 1 1 . . . 1 . . . . . . . . . . . 1 . . . Utility 14 | . . . 1 1 . . 3 1 . . 2 . . . . . . . . . 1 . . . . 3 2 Weapon 14 | . 3 2 2 1 . . . 1 . . . 2 . . . . . 1 . . . . . . . . 2 Tool/Special 1 | . . . 1 . . . . . . . . . . . . . . . . . . . . . . . . Average Slot Usage (%) 93 | . 92 100 99 100 100 100 98 99 99 100 99 99 90 89 85 86 87 88 86 86 78 78 77 79 80 80 86 Engine 9 | . 13 14 11 11 11 11 9 9 9 9 7 7 6 11 13 13 11 11 11 10 4 . 1 4 4 4 4 Reactor 1 | . . . . . . . . . . . . . . . . . . . . . 5 10 8 4 4 7 8 Leg 26 | . 21 28 33 33 33 33 35 35 35 36 30 29 22 20 20 20 23 23 21 23 15 15 15 14 14 13 16 Device 7 | . . . . . . . 7 6 9 9 15 10 8 9 5 1 4 5 6 15 15 15 14 18 21 21 21 Storage 8 | . 14 14 11 11 11 11 9 9 9 9 7 7 6 6 6 6 5 5 5 5 5 5 5 4 4 4 4 Processor 2 | . . . . . . . . 2 . . . 3 6 6 6 6 5 5 5 5 5 5 5 9 6 4 8 Protection 8 | . 12 14 10 11 11 10 10 8 9 9 7 7 3 5 4 4 5 5 5 5 5 5 5 4 4 3 3 Energy Gun 5 | . . 4 . . . . 6 7 9 9 7 13 10 10 13 13 11 11 10 9 7 5 5 4 8 6 3 Ballistic Gun 18 | . 27 22 32 32 . 32 17 16 18 17 20 13 13 12 12 13 11 5 7 9 10 10 10 9 9 3 . Peak Build Rating 194 | 7 10 13 21 28 24 23 44 49 49 49 58 62 74 90 83 80 92 95 103 121 150 150 151 162 161 182 194 Average Rating 60 | 5 7 10 17 21 21 22 34 46 48 48 57 60 67 80 79 78 90 94 97 110 134 150 146 159 160 172 187 On Entrance 73 | . 7 9 11 21 21 24 23 44 49 49 49 58 62 74 83 73 80 91 94 97 106 150 150 142 160 159 166 Naked Turns . | . . . . . . . . . . . . . . . . . . . . . . . . . . . . Heaviest Build 178 | 14 30 35 42 43 41 43 68 72 70 65 71 84 84 95 95 94 95 95 98 99 138 138 138 129 124 178 155 Greatest Support 175 | 20 20 20 30 30 30 30 71 71 71 69 69 76 76 86 86 86 114 109 118 144 150 150 150 150 150 150 175 Greatest Overweight (x) 5 | . 5 1 1 1 1 1 1 1 . . 1 1 1 1 1 1 1 . . 1 . . . . . 1 . Average Overweight (x) . | . . 1 . 1 1 1 . . . . . . . . . . . . . . . . . . . . . Largest Inventory Capacity 20 | 8 15 15 15 15 15 15 20 20 20 20 20 20 20 20 20 20 20 20 20 20 20 20 20 20 20 20 20 Average Capacity 17 | 7 12 15 15 15 15 15 15 20 20 20 20 20 20 20 20 20 20 20 20 20 20 20 20 20 20 20 20 Most Carried 20 | 5 15 15 15 15 15 15 20 20 20 20 20 20 20 20 19 20 20 20 20 20 20 20 20 20 20 20 20 Average Carried 16 | 2 11 14 14 14 14 15 15 19 19 19 19 19 19 19 17 19 19 19 19 19 19 20 19 18 20 19 19 Final Capacity 20 | 8 15 15 15 15 15 15 20 20 20 20 20 20 20 20 20 20 20 20 20 20 20 20 20 20 20 20 20 Final Carried 20 | 5 15 15 15 15 15 15 20 20 20 20 20 20 20 18 18 20 20 20 18 20 20 20 20 20 20 20 20 Class Distribution -------------------- 30% | Skirmisher 17% | Mutant 14% | Scavenger-Skirmisher 10% | Tank 7% | Infiltrator-Skirmisher 7% | Scavenger-Tank 4% | Scavenger-Gunner Dominant Class ---------------- Mutant | -10/Materials Mutant | -10/Mines Scavenger-Tank | -9/Materials Tank | -9/Mines Mutant | -9/Exiles Skirmisher | -8/Mines Scavenger-Skirmisher | -8/Materials Skirmisher | -8/Garrison Skirmisher | -8/Materials Skirmisher | -8/Garrison Skirmisher | -7/Factory Scavenger-Skirmisher | -7/DSF Scavenger-Skirmisher | -6/Factory Skirmisher | -6/Garrison Skirmisher | -6/Factory Skirmisher | -6/DSF Skirmisher | -5/Factory Skirmisher | -5/Waste Skirmisher | -5/Factory Scavenger-Skirmisher | -4/Factory Skirmisher | -4/Waste Skirmisher | -4/Factory Skirmisher | -4/DSF Infiltrator-Gunner | -3/Research Infiltrator-Skirmisher | -3/Garrison Infiltrator-Skirmisher | -2/Research Scavenger-Gunner | -1/Access Resources | -11 -10 -10 -9 -9 -9 -8 -8 -8 -8 -8 -7 -7 -6 -6 -6 -6 -5 -5 -5 -4 -4 -4 -4 -3 -3 -2 -1 ----------- Run | Yrd Mat Min Mat Min Exi Min Mat Gar Mat Gar Fac DSF Fac Gar Fac DSF Fac Was Fac Fac Was Fac DSF Res Gar Res Acc Matter Collected 10705 | 240 1181 291 1105 164 10 467 1384 924 70 . 120 620 110 905 84 245 52 161 409 615 155 . 142 29 313 805 104 Remotely 10 | . . . . . . . 10 . . . . . . . . . . . . . . . . . . . . Salvage Created 14690 | 41 1380 182 1702 188 . 302 2128 1346 108 . 180 915 197 910 . 121 . 198 349 1147 . . . 141 445 2606 104 Parts 802 | 6 71 11 105 22 . 25 125 72 6 . 6 54 7 42 . 5 . 3 8 62 . . . 8 22 137 5 Haulers Intercepted 11 | . 1 . 5 . . . 5 . . . . . . . . . . . . . . . . . . . . Recyclers Shooed 9 | . 7 . 2 . . . . . . . . . . . . . . . . . . . . . . . . Parts Field Recycled . | . . . . . . . . . . . . . . . . . . . . . . . . . . . . Retrieved Matter . | . . . . . . . . . . . . . . . . . . . . . . . . . . . . Parts Self-Destructed . | . . . . . . . . . . . . . . . . . . . . . . . . . . . . Prevented . | . . . . . . . . . . . . . . . . . . . . . . . . . . . . Kills | -11 -10 -10 -9 -9 -9 -8 -8 -8 -8 -8 -7 -7 -6 -6 -6 -6 -5 -5 -5 -4 -4 -4 -4 -3 -3 -2 -1 ------- Run | Yrd Mat Min Mat Min Exi Min Mat Gar Mat Gar Fac DSF Fac Gar Fac DSF Fac Was Fac Fac Was Fac DSF Res Gar Res Acc Combat Hostiles Destroyed 253 | . 22 6 31 10 . 12 34 27 2 . 2 15 3 16 . 2 . 1 5 13 . . . 2 6 43 1 Guns 168 | . 13 4 27 . . 5 29 21 2 . 2 14 3 14 . 2 . 1 5 11 . . . 1 6 8 . Cannons 11 | . . . . . . . . . . . . . . . . . . . . . . . . 1 . 10 . AOE 67 | . 9 2 4 10 . 7 5 6 . . . . . 2 . . . . . . . . . . . 22 . Classes Destroyed 22 | 1 8 . 3 . . 1 2 . . . . 2 . 2 . . . 1 . 1 . . . 1 . . . Worker 5 | . . . 1 . . 1 2 . . . . . . . . . . . . . . . . . . 1 . Builder 8 | . 1 . . . . . 2 . . . . . . . . . . . . 1 . . . . . 4 . Tunneler 5 | 2 . . 1 . . . 1 . . . . . . . . . . . . . . . . . . 1 . Hauler 11 | . 1 . 5 . . . 5 . . . . . . . . . . . . . . . . . . . . Recycler 18 | . 9 . 1 2 . . 4 . . . 1 . . . . . . . . . . . . . . 1 . Mechanic 2 | . 1 . 1 . . . . . . . . . . . . . . . . . . . . . . . . Operator 7 | . 2 . 2 . . . 2 . . . . . . . . . . . . . . . . . . 1 . Watcher 19 | . 3 . 4 . . . 5 . . . 1 . 1 1 . . . . . 3 . . . . . 1 . Swarmer 68 | . 9 2 4 10 . 7 7 3 . . 1 2 . 4 . . . . . . . . . . . 19 . Cutter 2 | . . . . . . . . . . . . . . 2 . . . . . . . . . . . . . Grunt 101 | . 13 4 19 . . 3 11 18 . . . 3 3 4 . 2 . . 4 2 . . . 1 5 9 . Brawler 1 | . . . . . . 1 . . . . . . . . . . . . . . . . . . . . . Duelist 3 | . . . 1 . . 1 . . . . . . . 1 . . . . . . . . . . . . . Sentry 27 | . . . 7 . . . 7 6 2 . 1 . . 1 . . . . 1 . . . . . . 1 1 Demolisher 1 | . . . . . . . . . . . . . . 1 . . . . . . . . . . . . . Specialist 19 | . . . . . . . 8 1 . . . 7 . . . . . . . 2 . . . . . 1 . Hunter 5 | . . . . . . . 1 . . . . . . . . . . . . 2 . . . . . 2 . Programmer 21 | . . . . . . . . . . . . 2 . 2 . . . . . 6 . . . . 1 10 . Heavy 3 | . . . . . . . . . . . . 1 . . . . . . . 1 . . . . . 1 . Behemoth 1 | . . . . . . . . . . . . . . . . . . . . . . . . 1 . . . Compactor 1 | . . . . . . . . . . . . . . . . . . 1 . . . . . . . . . Executioner 1 | . . . . . . . . . . . . . . . . . . . . 1 . . . . . . . Surgeon 1 | . . . . . . . . . . . . . . . . . . . . . . . . . . 1 . Martyr 1 | . . . . . . . . . . . . . . . . . . . . . . . . . . 1 . Infiltrator 1 | . . . . . . . . . . . . . . 1 . . . . . . . . . . . . . Best Kill Streak 9 | 2 6 2 4 4 . 4 6 6 2 . 1 4 3 6 . 2 . 1 4 4 . . . 1 3 9 1 Combat Bots Only 8 | . 6 2 4 4 . 4 5 6 2 . 1 4 3 6 . 2 . 1 4 4 . . . 1 3 8 1 Max Kills in Single Turn 5 | 1 2 2 2 3 . 2 2 3 1 . 1 2 1 1 . 1 . 1 1 1 . . . 1 1 5 1 Gunslinging 1 | . . . 1 . . . . . . . . 1 . . . . . . . . . . . . . . . Exploded 4 | . 2 2 2 3 . 2 2 2 . . . . . 1 . . . . . . . . . . . 4 . Melee . | . . . . . . . . . . . . . . . . . . . . . . . . . . . . Uniques/NPCs Destroyed . | . . . . . . . . . . . . . . . . . . . . . . . . . . . . Combat | -11 -10 -10 -9 -9 -9 -8 -8 -8 -8 -8 -7 -7 -6 -6 -6 -6 -5 -5 -5 -4 -4 -4 -4 -3 -3 -2 -1 -------- Run | Yrd Mat Min Mat Min Exi Min Mat Gar Mat Gar Fac DSF Fac Gar Fac DSF Fac Was Fac Fac Was Fac DSF Res Gar Res Acc Hostile Shots Fired 1140 | . 130 21 89 15 . 32 145 118 10 . 11 60 10 87 . 7 . . 20 93 . . 4 . 26 255 7 Missed 360 | . 39 6 25 3 . 10 44 32 2 . 4 16 3 23 . 2 . . 13 42 . . . . 6 85 5 Hits 780 | . 91 15 64 12 . 22 101 86 8 . 7 44 7 64 . 5 . . 7 51 . . 4 . 20 170 2 Melee 5 | . . . 1 . . . . . . . . . . 4 . . . . . . . . . . . . . Projectile 775 | . 91 15 63 12 . 22 101 86 8 . 7 44 7 60 . 5 . . 7 51 . . 4 . 20 170 2 AOE 1 | . . . . . . . . . . . . . . 1 . . . . . . . . . . . . . Critical Strikes 25 | . 1 . 1 . . 2 2 4 1 . . . . 2 . . . . . 1 . . 1 . 3 7 . Actively Blocked 4 | . . . . . . . . . . . . . . . . . . . . . . . . . . 4 . Part Disruptions 2 | . . . . . . . . . . . . . . . . . . . . . . . . . . 2 . Damage Taken 12781 | . 1209 168 830 120 . 399 1328 1225 119 . 65 816 131 964 . 118 . . 106 1129 . . 128 . 458 3416 52 Core 1265 | . 149 39 150 16 . 55 202 107 . . 13 38 38 35 . . . . . 43 . . 22 . 16 317 25 Absorbed by Shields 701 | . . . . . . . . 197 . . . 65 . 61 . . . . . . . . . . . 378 . Regen/Repaired (Parts) 4730 | . . . 37 . . . 557 . . . . . . . 40 23 . . 800 1290 1483 . 85 . 391 24 . Core Remaining (%) 78 | 100 . 24 . . . 44 . . . 43 . 92 . . . 91 . . 100 . . . 94 . 98 78 98 Volleys Fired 826 | 4 133 22 96 8 . 28 105 101 7 4 5 18 8 58 3 4 . 13 13 42 . . 4 5 17 104 24 Largest 4 | 2 2 2 3 3 . 3 3 3 3 1 4 4 4 4 1 4 . 3 4 4 . . 4 4 4 4 1 Hottest 354 | 40 40 85 75 75 . 75 151 151 123 75 158 218 218 233 10 233 . 200 233 233 . . 258 258 249 354 120 Shots Fired 1961 | 8 256 37 284 14 . 66 278 224 21 4 18 70 31 128 4 16 . 21 33 125 1 . 12 19 49 218 24 Gun 1748 | 8 250 30 282 9 . 57 267 213 21 4 18 70 31 119 1 16 . 12 31 117 1 . 8 14 47 122 . Cannon 142 | . . 6 . . . . 5 6 . . . . . . . . . . . 4 . . 4 5 . 89 23 Launcher 41 | . 6 1 2 5 . 9 6 3 . . . . . 2 . . . . . . . . . . . 7 . Special 30 | . . . . . . . . 2 . . . . . 7 3 . . 9 2 4 . . . . 2 . 1 Kinetic 1346 | 8 250 29 282 9 . 57 215 140 14 . 13 35 16 88 . 9 . 4 21 62 1 . 8 10 22 53 . Thermal 516 | . . 7 . . . . 50 75 7 4 5 35 15 31 1 7 . 8 10 59 . . 4 9 25 148 16 Explosive 41 | . 6 1 2 5 . 9 6 3 . . . . . 2 . . . . . . . . . . . 7 . Electromagnetic 34 | . . . . . . . 7 6 . . . . . . . . . . . 4 . . . . . 10 7 Robot Hit Streak 31 | 4 12 5 15 4 . 8 31 17 26 . 27 11 5 18 2 6 . 9 16 20 . . 3 8 5 8 4 Robot Miss Streak 8 | 1 5 3 8 1 . 4 6 4 . . 3 4 4 5 1 2 . 2 3 5 3 . 1 2 3 5 1 Penetration Max 2 | . . . . . . . . . . . . . . 1 . 1 . . 2 1 . . 1 1 2 . . Secondary Targets 27 | . 1 1 4 . . 1 1 4 . . . 5 . 2 . 1 . . . 3 . . . . 3 1 . Max Gunslinging Chain 1 | . 1 1 1 . . 1 1 1 . . . 1 . 1 . 1 . . . 1 . . . . 1 1 . Shots Hit Robots 1192 | 5 160 21 166 4 4 33 175 132 20 . 10 54 19 82 2 12 . 15 25 102 . . 8 12 26 99 6 Core Hits 673 | 2 70 11 70 13 . 19 87 55 3 . 6 38 14 52 . 8 . 8 23 64 1 . 2 7 18 102 . Critical Kills 31 | . 1 . . . . 1 1 . . . 1 . . 9 . 1 . . 3 6 . . . . 2 6 . Critical Parts Destroyed 42 | . 1 . 1 . . . . 1 . . . . . 10 . 2 . . 4 14 . . 2 . 4 3 . Critical Strikes 86 | . 2 . 1 . . 1 3 2 . . 1 . . 19 . 3 . . 7 21 . . 2 3 7 14 . Burn 7 | . . . . . . . 2 1 . . . . . . . . . . . . . . . . 1 3 . Meltdown 2 | . . . . . . . . . . . . . . . . . . . . . . . . . . 2 . Destroy 74 | . 2 . 1 . . 1 1 1 . . 1 . . 19 . 3 . . 7 20 . . 2 3 6 7 . Blast 1 | . . . . . . . . . . . . . . . . . . . . . . . . . . 1 . Corrupt 2 | . . . . . . . . . . . . . . . . . . . . 1 . . . . . 1 . Melee Attacks 61 | . . . . . 4 . 3 12 . . 1 25 1 15 . . . . . . . . . . . . . Impact . | . . . . . . . . . . . . . . . . . . . . . . . . . . . . Slashing 57 | . . . . . . . 3 12 . . 1 25 1 15 . . . . . . . . . . . . . Piercing . | . . . . . . . . . . . . . . . . . . . . . . . . . . . . Sneak Attacks 6 | . . . . . 4 . . . . . 1 . . 1 . . . . . . . . . . . . . Combat Hostiles . | . . . . . . . . . . . . . . . . . . . . . . . . . . . . Follow-up Attacks . | . . . . . . . . . . . . . . . . . . . . . . . . . . . . Damage Inflicted 28181 | 62 2470 284 2548 672 . 975 3568 2800 391 . 230 1229 386 1325 . 203 . 238 386 1708 8 . 131 295 599 7393 280 Guns 18473 | 62 1929 172 2328 71 . 607 2921 2213 391 . 163 1229 386 1082 . 203 . 238 386 1506 8 . 44 167 599 1768 . Cannons 2504 | . . . . . . . 81 51 . . . . . . . . . . . 175 . . 87 128 . 1770 212 Explosions 6780 | . 541 112 220 601 . 368 563 515 . . . . . 169 . . . . . . . . . . . 3623 68 Melee 141 | . . . . . . . . . . . 67 . . 74 . . . . . . . . . . . . . Ramming 242 | . . . . . . . 3 7 . . . . . . . . . . . . . . . . . 232 . Kinetic 11700 | 62 1929 156 2328 71 . 607 2158 1435 223 . 108 480 177 408 . 44 . 26 185 383 8 . 44 49 146 673 . Thermal 9395 | . . 16 . . . . 721 932 168 . 55 749 209 674 . 159 . 212 201 1150 . . 87 246 453 3295 68 Explosive 5888 | . 541 112 220 601 . 368 563 375 . . . . . 169 . . . . . . . . . . . 2939 . Electromagnetic 815 | . . . . . . . 123 51 . . . . . . . . . . . 175 . . . . . 254 212 Impact . | . . . . . . . . . . . . . . . . . . . . . . . . . . . . Slashing 141 | . . . . . . . . . . . 67 . . 74 . . . . . . . . . . . . . Piercing . | . . . . . . . . . . . . . . . . . . . . . . . . . . . . Highest Corruption 18 | . . . 1 1 1 1 2 2 4 4 . 1 . 5 5 5 . 15 18 6 6 6 7 . 1 15 . Average Corruption 3 | . . . 1 1 1 1 2 2 2 4 . 1 . 2 5 5 . 10 17 4 6 6 6 . 1 9 . Corruption Purged . | . . . . . . . . . . . . . . . . . . . . . . . . . . . . Corruption Blocked . | . . . . . . . . . . . . . . . . . . . . . . . . . . . . Effects 185 | . . . 2 5 5 8 23 22 4 15 . 1 . 18 7 7 . 4 8 8 9 . 8 . 2 29 . Message Errors 45 | . . . . 2 2 4 5 5 . 4 . . . 3 3 2 . 1 1 1 2 . 3 . . 7 . Matter Fused 41 | . . . . . 2 . 4 6 1 4 . . . 6 1 1 . 1 . 2 3 . 3 . . 7 . Heat Flow Errors 20 | . . . . 1 . 1 3 3 2 1 . . . 2 1 . . . 1 . . . . . 1 4 . Energy Discharges 17 | . . . 1 1 . . 3 5 1 2 . . . 1 . . . . . . 1 . . . . 2 . Parts Rejected 6 | . . . . . . . . . . . . . . . . 1 . 1 1 1 . . . . . 2 . Parts Fused 2 | . . . 1 . . . . . . 1 . . . . . . . . . . . . . . . . . Data Loss (minor) 26 | . . . . 1 . 3 3 2 . 3 . . . 4 . . . 1 3 2 1 . 1 . . 2 . Data Loss (major) 8 | . . . . . 1 . 2 . . . . 1 . 1 1 1 . . . 1 . . . . . . . Misfires 10 | . . . . . . . 2 1 . . . . . 1 1 1 . . 2 . 1 . . . 1 . . Alerts 2 | . . . . . . . 1 . . . . . . . . . . . . . 1 . . . . . . Misdirections 2 | . . . . . . . . . . . . . . . . . . . . . . . . . . 2 . Weapon Failures 6 | . . . . . . . . . . . . . . . . 1 . . . 1 . . 1 . . 3 . Overload Shots . | . . . . . . . . . . . . . . . . . . . . . . . . . . . . Overflow Damage 473 | . 18 . . 48 . 36 57 . . . . . . . . . . . . . . . . . . 283 31 Projectiles 31 | . . . . . . . . . . . . . . . . . . . . . . . . . . 14 17 Explosions 423 | . 18 . . 48 . 36 57 . . . . . . . . . . . . . . . . . . 250 14 Melee 19 | . . . . . . . . . . . . . . . . . . . . . . . . . . 19 . Knockbacks 5 | . . . . . . . . . . . . . . . . . . . . . . . . . . 5 . Impact 1 | . . . . . . . . . . . . . . . . . . . . . . . . . . 1 . Kinetic 3 | . . . . . . . . . . . . . . . . . . . . . . . . . . 3 . Secondary 1 | . . . . . . . . . . . . . . . . . . . . . . . . . . 1 . Self-Inflicted Damage 550 | . 122 . . 25 . 30 32 54 . . . . . . . . . . . . . . . . . 287 . Shots 19 | . 4 . . 1 . 1 1 2 . . . . . . . . . . . . . . . . . 10 . Rammed . | . . . . . . . . . . . . . . . . . . . . . . . . . . . . Targets Rammed 14 | . . . . . . . 3 1 . . . . . . . . . . . . . . . . . 10 . Kicked 14 | . . . . . . . 3 1 . . . . . . . . . . . . . . . . . 10 . Crushed . | . . . . . . . . . . . . . . . . . . . . . . . . . . . . Highest Temperature 529 | . 56 84 211 157 . 216 260 290 267 160 12 529 177 413 234 93 . 120 336 84 . . . 234 249 507 135 Average Temperature 81 | . 17 22 44 51 . 74 38 87 93 97 6 194 63 146 103 42 . 50 144 28 . . . 104 160 141 54 Received Heat Transfer 2708 | . 564 90 369 . . 189 333 569 54 . 12 66 63 45 . 27 . . 18 99 . . . . 54 147 9 Effects 16 | . . . . . . . . 2 . . . 6 . 4 . . . . . . . . . . . 4 . Shutdowns 2 | . . . . . . . . . . . . . . 1 . . . . . . . . . . . 1 . Energy Bleed 4 | . . . . . . . . 2 . . . . . . . . . . . . . . . . . 2 . Interference 4 | . . . . . . . . . . . . 2 . 2 . . . . . . . . . . . . . Matter Decay 2 | . . . . . . . . . . . . 1 . 1 . . . . . . . . . . . . . Short Circuit 2 | . . . . . . . . . . . . 2 . . . . . . . . . . . . . . . Damage (minor) 2 | . . . . . . . . . . . . 1 . . . . . . . . . . . . . 1 . Siege Activations . | . . . . . . . . . . . . . . . . . . . . . . . . . . . . Martial Activations . | . . . . . . . . . . . . . . . . . . . . . . . . . . . . Shielding Activations . | . . . . . . . . . . . . . . . . . . . . . . . . . . . . Robots Disrupted 1 | . . . . . . . . . . . . . . . . . . . . 1 . . . . . . . Combat Hostiles . | . . . . . . . . . . . . . . . . . . . . . . . . . . . . Robots Corrupted 3 | . . . . . . . . . . . . . . . . . . . . 2 . . . . . . 1 Combat Hostiles 3 | . . . . . . . . . . . . . . . . . . . . 2 . . . . . . 1 Parts Fried 8 | . . . . . . . 2 . . . . . . . . . . . . 3 . . . . . 2 1 Impact Corruptions 2 | . . . . . . . . . . . . . . . . . . . . . . . . . . 2 . Robots Melted 5 | . . . . . . . . . . . . 1 . . . . . . . . . . . . . 4 . Combat Hostiles 4 | . . . . . . . . . . . . 1 . . . . . . . . . . . . . 3 . Parts Melted 52 | . . . . . . . 1 2 1 . . 11 1 . . . . . 2 7 . . . . 3 24 . Heat Transferred 18470 | . . 37 . . . . 1702 1678 350 . 125 1675 500 1413 . 350 . 475 450 2450 . . 74 259 900 5982 50 Parts Sabotaged . | . . . . . . . . . . . . . . . . . . . . . . . . . . . . Parts Stolen . | . . . . . . . . . . . . . . . . . . . . . . . . . . . . Parts Stripped . | . . . . . . . . . . . . . . . . . . . . . . . . . . . . Power Chain Reactions 1 | . . . . . . . . 1 . . . . . . . . . . . . . . . . . . . Alert | -11 -10 -10 -9 -9 -9 -8 -8 -8 -8 -8 -7 -7 -6 -6 -6 -6 -5 -5 -5 -4 -4 -4 -4 -3 -3 -2 -1 ------- Run | Yrd Mat Min Mat Min Exi Min Mat Gar Mat Gar Fac DSF Fac Gar Fac DSF Fac Was Fac Fac Was Fac DSF Res Gar Res Acc Maximum Alert Level 4 | . 1 . 2 1 . . 1 4 2 2 1 2 1 3 1 2 1 . . . . . 2 3 3 4 3 Low Security (%) 57 | 100 99 100 30 89 . 100 86 6 . . 83 70 86 30 . . . 100 100 100 100 100 16 . . . . Level 1 17 | . . . 62 10 . . 13 14 . 72 16 22 13 13 100 79 100 . . . . . 50 21 . . . Level 2 11 | . . . 7 . . . . 32 100 27 . 6 . 39 . 20 . . . . . . 33 60 25 21 . Level 3 10 | . . . . . . . . 39 . . . . . 16 . . . . . . . . . 17 74 47 100 Level 4 2 | . . . . . . . . 6 . . . . . . . . . . . . . . . . . 30 . Level 5 . | . . . . . . . . . . . . . . . . . . . . . . . . . . . . High Security . | . . . . . . . . . . . . . . . . . . . . . . . . . . . . Max Security . | . . . . . . . . . . . . . . . . . . . . . . . . . . . . Sterilizations 1 | . . . . . . . . . . . . 1 . . . . . . . . . . . . . . . Peak Influence 1367 | 5 206 136 539 223 . 178 354 1245 627 455 238 427 224 725 380 477 261 77 186 197 65 5 433 723 1007 1367 820 Initial 820 | . 3 48 2 208 . . 64 135 606 379 238 52 224 63 380 221 249 77 14 86 65 . . 243 519 566 820 Average 285 | 1 72 26 237 99 . 26 133 658 605 399 142 166 142 434 347 355 242 48 61 62 11 1 287 542 823 917 768 Influence Increases 11290 | 10 782 206 1059 356 . 429 1162 1180 68 76 67 405 81 692 27 256 32 4 253 414 . 5 515 680 508 1894 129 Destroy 0b10 Robot/C 5940 | . 440 140 620 240 . 260 680 640 40 . 40 300 60 360 . 140 20 . 140 260 . . 160 240 240 900 20 Destroy 0b10 Robot/NC 420 | 10 85 . 75 10 . 5 105 10 . . 10 . 5 10 5 . . . 5 20 . . 5 15 . 45 . Destroy Leader 1140 | . 98 20 188 30 . 40 200 30 20 . 12 70 12 40 . 20 . . 50 76 . . 30 32 20 142 10 Allied During Kill 1059 | . . 14 . 28 . 3 . 62 . . . . . 4 2 80 10 . 56 1 . . 195 259 196 149 . Successful Hack 372 | . 57 . 47 . . . 89 28 7 16 5 . 3 . 5 . . . . 55 . 5 . 24 . 31 . Select Force Hacks 50 | . . . 50 . . . . . . . . . . . . . . . . . . . . . . . . Disable Machine 255 | . 30 30 . 15 . 60 15 . . . . 15 . . 15 15 . . . . . . 15 . . 30 15 Anti-Garrison Action 400 | . . . . . . . . 150 . 50 . . . 150 . . . . . . . . . . 50 . . Destroy Structure 1204 | . 27 2 19 33 . 61 58 140 1 10 . 5 1 83 . 1 2 4 2 2 . . 110 110 2 447 84 Partial Spotted 30 | . . . . . . . . 30 . . . . . . . . . . . . . . . . . . . Lose Combat Pursuer 420 | . 45 . 60 . . . 15 90 . . . 15 . 45 . . . . . . . . . . . 150 . Influence Decreases 10559 | 5 661 324 531 723 169 263 1120 143 729 205 447 53 417 58 435 96 288 204 98 403 187 5 82 420 194 1534 765 Entered New Map 4457 | . 2 78 6 328 169 . 102 73 639 205 217 23 203 28 345 96 228 144 7 90 122 . . 190 174 441 547 Time Decay 4710 | 5 579 246 515 395 . 243 668 . 80 . 230 . 214 . 90 . 60 60 51 303 65 5 . 150 . 553 198 Lost Part 370 | . 80 . 10 . . . 50 30 10 . . 30 . 10 . . . . . 10 . . . . . 140 . Lost Ally 422 | . . . . . . 20 . 40 . . . . . 20 . . . . 40 . . . 82 80 20 100 20 Purge Threat 600 | . . . . . . . 300 . . . . . . . . . . . . . . . . . . 300 . Squads Dispatched 57 | . 4 1 6 . . . 10 . . . 1 4 1 . . 1 1 . 2 4 . . 2 3 . 14 3 Investigation 15 | . 2 1 3 . . . 4 . . . . . 1 . . . 1 . . 1 . . . 1 . 1 . Extermination 9 | . . . . . . . . . . . 1 . . . . . . . . 2 . . . 1 . 4 1 Reinforcement 26 | . 2 . 3 . . . 5 . . . . 4 . . . 1 . . 2 1 . . 2 1 . 4 1 Assault 6 | . . . . . . . . . . . . . . . . . . . . . . . . . . 5 1 Garrison 1 | . . . . . . . 1 . . . . . . . . . . . . . . . . . . . . Intercept . | . . . . . . . . . . . . . . . . . . . . . . . . . . . . Searches Triggered . | . . . . . . . . . . . . . . . . . . . . . . . . . . . . Construction Impeded 1 | . . . . . . . . . . . . . . . . . . . 1 . . . . . . . . Haulers Reinforced 3 | . . . . . . . . . . . . . . . . . . . . . . . . 1 . 2 . Active Scanning Responses . | . . . . . . . . . . . . . . . . . . . . . . . . . . . . Cargo Convoy Interrupts . | . . . . . . . . . . . . . . . . . . . . . . . . . . . . Stealth | -11 -10 -10 -9 -9 -9 -8 -8 -8 -8 -8 -7 -7 -6 -6 -6 -6 -5 -5 -5 -4 -4 -4 -4 -3 -3 -2 -1 --------- Run | Yrd Mat Min Mat Min Exi Min Mat Gar Mat Gar Fac DSF Fac Gar Fac DSF Fac Was Fac Fac Was Fac DSF Res Gar Res Acc Distress Signals 12 | . 1 1 2 . . . 2 . . . 1 . . . . . . . 1 2 . . . 1 . 1 . Communications Jammed 105 | . . . . . . . . . . . 2 . . . . . . . . 5 . . . 30 . 60 8 Distress Signals 92 | . . . . . . . . . . . 2 . . . . . . . . . . . . 30 . 52 8 Times Spotted 374 | . 39 6 48 12 . 13 46 29 2 . 4 18 9 21 . 6 . 5 9 18 . . 5 6 11 63 4 Peak Tracking Total 9 | . 5 3 7 4 . 4 4 6 3 2 2 5 4 4 . 3 . 3 4 3 . . 3 2 4 9 5 Tactical Retreats 14 | . 2 . 3 . . . 1 2 . . . 1 . 1 . . . . . . . . . . . 4 . Traps | -11 -10 -10 -9 -9 -9 -8 -8 -8 -8 -8 -7 -7 -6 -6 -6 -6 -5 -5 -5 -4 -4 -4 -4 -3 -3 -2 -1 ------- Run | Yrd Mat Min Mat Min Exi Min Mat Gar Mat Gar Fac DSF Fac Gar Fac DSF Fac Was Fac Fac Was Fac DSF Res Gar Res Acc Traps Triggered 31 | . 5 . 2 . . . 3 5 2 . . 2 . 4 . . 1 . . 5 . . . 1 . 1 . Indirectly . | . . . . . . . . . . . . . . . . . . . . . . . . . . . . Trap Hack Attempts . | . . . . . . . . . . . . . . . . . . . . . . . . . . . . Triggered . | . . . . . . . . . . . . . . . . . . . . . . . . . . . . Disarmed . | . . . . . . . . . . . . . . . . . . . . . . . . . . . . Reprogrammed . | . . . . . . . . . . . . . . . . . . . . . . . . . . . . Reused . | . . . . . . . . . . . . . . . . . . . . . . . . . . . . Traps Extracted . | . . . . . . . . . . . . . . . . . . . . . . . . . . . . Installed 1 | . . . 1 . . . . . . . . . . . . . . . . . . . . . . . . Triggered . | . . . . . . . . . . . . . . . . . . . . . . . . . . . . Most Traps Carried 1 | . . 1 1 . . . . . . . . . . . . . . . . . . . . . . . . Machines | -11 -10 -10 -9 -9 -9 -8 -8 -8 -8 -8 -7 -7 -6 -6 -6 -6 -5 -5 -5 -4 -4 -4 -4 -3 -3 -2 -1 ---------- Run | Yrd Mat Min Mat Min Exi Min Mat Gar Mat Gar Fac DSF Fac Gar Fac DSF Fac Was Fac Fac Was Fac DSF Res Gar Res Acc Machines Disabled 22 | . 2 2 . 1 . 4 1 1 . . . 1 . 2 1 1 . . . . . . 1 . 2 2 1 Max in Single Turn 2 | . 1 2 . 1 . 2 1 1 . . . 1 . 1 . . . . . . . . . . 1 1 1 Garrison Relay 3 | . . . . . . . . 1 . . . . . 1 . . . . . . . . . . 1 . . Phase Generator 1 | . . . . . . . . . . . . . . . . . . . . . . . . . 1 . . Energy Cycler 1 | . . . . . . . . . . . . . . . . . . . . . . . . . . . 1 Machines Repaired . | . . . . . . . . . . . . . . . . . . . . . . . . . . . . Machines Dismantled . | . . . . . . . . . . . . . . . . . . . . . . . . . . . . Machines Sabotaged 1 | . . . 1 . . . . . . . . . . . . . . . . . . . . . . . . Overloaded Fab Kills . | . . . . . . . . . . . . . . . . . . . . . . . . . . . . Hacking | -11 -10 -10 -9 -9 -9 -8 -8 -8 -8 -8 -7 -7 -6 -6 -6 -6 -5 -5 -5 -4 -4 -4 -4 -3 -3 -2 -1 --------- Run | Yrd Mat Min Mat Min Exi Min Mat Gar Mat Gar Fac DSF Fac Gar Fac DSF Fac Was Fac Fac Was Fac DSF Res Gar Res Acc Machines Accessed 81 | . 9 1 12 . 2 . 17 4 2 2 3 . 3 1 3 . 1 . . 6 . 1 . 5 2 6 1 Terminals 53 | . 6 . 9 . . . 11 4 1 2 2 . 1 1 2 . . . . 4 . 1 . 2 2 4 1 Fabricators 3 | . . . . . . . . . . . . . 1 . 1 . . . . . . . . . . 1 . Repair Stations 8 | . 1 . 1 . . . 2 . . . 1 . . . . . . . . 2 . . . 1 . . . Recycling Units 6 | . 2 . 1 . . . 1 . . . . . . . . . . . . . . . . 1 . 1 . Scanalyzers 4 | . . . 1 . . . 2 . . . . . . . . . 1 . . . . . . . . . . Garrison Access 4 | . . . . . . . 1 . 1 . . . 1 . . . . . . . . . . 1 . . . Total Hacks 266 | . 26 1 55 . 5 . 78 9 5 4 8 . 15 1 7 . 2 . . 19 . 1 . 9 2 18 1 Successful 152 | . 11 1 35 . 5 . 58 4 4 1 2 . 10 1 3 . . . . 8 . 1 . 2 . 6 . Failed 113 | . 15 . 19 . . . 20 5 1 3 6 . 5 . 4 . 2 . . 11 . . . 7 2 12 1 Catastrophic 22 | . 4 . 3 . . . 2 1 . . . . . . 1 . . . . 4 . . . 3 2 2 . Database Lockouts 1 | . . . 1 . . . . . . . . . . . . . . . . . . . . . . . . Manual 118 | . 17 . 33 . 1 . 30 2 3 1 3 . 4 1 2 . 1 . . 10 . . . 5 . 5 . Terminals 156 | . 16 . 39 . . . 39 9 4 4 4 . 2 1 4 . . . . 12 . 1 . 4 2 14 1 Fabricators 18 | . . . . . . . . . . . . . 12 . 3 . . . . . . . . . . 3 . Repair Stations 38 | . 3 . 2 . . . 20 . . . 4 . . . . . . . . 7 . . . 2 . . . Recycling Units 18 | . 7 . 6 . . . 2 . . . . . . . . . . . . . . . . 2 . 1 . Scanalyzers 24 | . . . 8 . . . 14 . . . . . . . . . 2 . . . . . . . . . . Garrison Access 6 | . . . . . . . 3 . 1 . . . 1 . . . . . . . . . . 1 . . . Terminal Hacks 50 | . 3 1 10 . 5 . 14 3 1 1 1 . . 1 1 . . . . 4 . 1 . . . 4 . Record 4 | . . . . . 4 . . . . . . . . . . . . . . . . . . . . . . Part Schematic 4 | . 2 . 1 . . . . . . 1 . . . . . . . . . . . . . . . . . Robot Schematic 1 | . 1 . . . . . . . . . . . . . . . . . . . . . . . . . . Robot Analysis 3 | . . . 3 . . . . . . . . . . . . . . . . . . . . . . . . Prototype ID Bank 3 | . . . 1 . . . 2 . . . . . . . . . . . . . . . . . . . . Open Door 3 | . . 1 . . . . . 2 . . . . . . . . . . . . . . . . . . . Open DSF 4 | . . . . . . . . . . . 1 . . . 1 . . . . 1 . 1 . . . . . Level Access Points 1 | . . . . . . . . . . . . . . . . . . . . . . . . . . 1 . Emergency Access Points 1 | . . . . . . . . 1 . . . . . . . . . . . . . . . . . . . Terminal Index 4 | . . . 2 . . . 1 . . . . . . . . . . . . 1 . . . . . . . Scanalyzer Index 2 | . . . . . . . 1 . . . . . . . . . . . . 1 . . . . . . . Alert Level 2 | . . . . . . . 2 . . . . . . . . . . . . . . . . . . . . Unreport Threat 4 | . . . . . . . 2 . . . . . . . . . . . . . . . . . . 2 . Locate Traps 4 | . . . 1 . . . 3 . . . . . . . . . . . . . . . . . . . . Hauler Manifests 2 | . . . 1 . . . 1 . . . . . . . . . . . . . . . . . . . . Registered Components 3 | . . . 1 . . . 1 . 1 . . . . . . . . . . . . . . . . . . Registered Prototypes 1 | . . . . . . . 1 . . . . . . . . . . . . . . . . . . . . Zone Layout 2 | . . . . . . . . . . . . . . . . . . . . 1 . . . . . 1 . Garrison Registry 1 | . . . . . . . . . . . . . . 1 . . . . . . . . . . . . . Proto ID Catalog 1 | . . . . . 1 . . . . . . . . . . . . . . . . . . . . . . Fabricator Hacks 10 | . . . . . . . . . . . . . 8 . 2 . . . . . . . . . . . . Network Status 1 | . . . . . . . . . . . . . 1 . . . . . . . . . . . . . . Load Schematic 4 | . . . . . . . . . . . . . 3 . 1 . . . . . . . . . . . . Build 5 | . . . . . . . . . . . . . 4 . 1 . . . . . . . . . . . . Repair Station Hacks 21 | . 1 . 2 . . . 14 . . . 1 . . . . . . . . 3 . . . . . . . Scan Component 11 | . . . 1 . . . 7 . . . 1 . . . . . . . . 2 . . . . . . . Repair 9 | . . . 1 . . . 7 . . . . . . . . . . . . 1 . . . . . . . Refit 1 | . 1 . . . . . . . . . . . . . . . . . . . . . . . . . . Recycling Unit Hacks 7 | . 4 . 2 . . . 1 . . . . . . . . . . . . . . . . . . . . Report Inventory 4 | . 2 . 1 . . . 1 . . . . . . . . . . . . . . . . . . . . Retrieve Components 3 | . 2 . 1 . . . . . . . . . . . . . . . . . . . . . . . . Scanalyzer 18 | . . . 8 . . . 10 . . . . . . . . . . . . . . . . . . . . Insert Component 9 | . . . 4 . . . 5 . . . . . . . . . . . . . . . . . . . . Analyze 9 | . . . 4 . . . 5 . . . . . . . . . . . . . . . . . . . . Garrison Access Hacks 4 | . . . . . . . 1 . 1 . . . 1 . . . . . . . . . . 1 . . . Unlock Access 4 | . . . . . . . 1 . 1 . . . 1 . . . . . . . . . . 1 . . . Unauthorized Hacks 42 | . 3 . 13 . . . 18 1 2 . . . 1 . . . . . . 1 . . . 1 . 2 . Terminals 37 | . 2 . 13 . . . 15 1 2 . . . . . . . . . . 1 . . . 1 . 2 . Track 4 | . . . 3 . . . 1 . . . . . . . . . . . . . . . . . . . . Botnet 16 | . 1 . 3 . . . 6 1 1 . . . . . . . . . . 1 . . . 1 . 2 . Disrupt 2 | . . . . . . . 2 . . . . . . . . . . . . . . . . . . . . Operators 3 | . 1 . 1 . . . 1 . . . . . . . . . . . . . . . . . . . . Skim 11 | . . . 5 . . . 5 . 1 . . . . . . . . . . . . . . . . . . Sabotage 1 | . . . 1 . . . . . . . . . . . . . . . . . . . . . . . . Fabricators 1 | . . . . . . . . . . . . . 1 . . . . . . . . . . . . . . Prioritize 1 | . . . . . . . . . . . . . 1 . . . . . . . . . . . . . . Repair Stations 1 | . . . . . . . 1 . . . . . . . . . . . . . . . . . . . . Mechanics 1 | . . . . . . . 1 . . . . . . . . . . . . . . . . . . . . Recycling Units 2 | . 1 . . . . . 1 . . . . . . . . . . . . . . . . . . . . Recyclers 2 | . 1 . . . . . 1 . . . . . . . . . . . . . . . . . . . . Scanalyzers . | . . . . . . . . . . . . . . . . . . . . . . . . . . . . Garrison Access 1 | . . . . . . . 1 . . . . . . . . . . . . . . . . . . . . Reprogram 1 | . . . . . . . 1 . . . . . . . . . . . . . . . . . . . . Data Cores Recovered 2 | . . . . . . . 2 . . . . . . . . . . . . . . . . . . . . Used 2 | . . . . . . . 2 . . . . . . . . . . . . . . . . . . . . Hacking Detections 68 | . 9 . 10 . . . 15 2 1 1 3 . 3 . 3 . 1 . . 6 . . . 5 2 6 1 Full Trace Events 9 | . 1 . . . . . 2 . . 1 . . 1 . . . 1 . . 1 . . . 1 . 1 . Feedback Events 1 | . . . . . . . . . . . . . . . . . . . . 1 . . . . . . . Corruption 1 | . . . . . . . . . . . . . . . . . . . . 1 . . . . . . . Feedback Blocked . | . . . . . . . . . . . . . . . . . . . . . . . . . . . . Robot Schematics Acquired 1 | . 1 . . . . . . . . . . . . . . . . . . . . . . . . . . Robots Built 1 | . . . . . . . . . . . . . . . 1 . . . . . . . . . . . . Authchips 1 | . . . . . . . . . . . . . . . 1 . . . . . . . . . . . . Time 27 | . . . . . . . . . . . . . . . 27 . . . . . . . . . . . . Total Robot Build Rating 1 | . . . . . . . . . . . . . . . 1 . . . . . . . . . . . . Part Schematics Acquired 12 | . 2 . 5 . . . 4 . . 1 . . . . . . . . . . . . . . . . . Parts Built 5 | . . . . . . . . . . . . . 5 . . . . . . . . . . . . . . Authchips 3 | . . . . . . . . . . . . . 3 . . . . . . . . . . . . . . Time 254 | . . . . . . . . . . . . . 254 . . . . . . . . . . . . . . Total Part Build Rating 28 | . . . . . . . . . . . . . 28 . . . . . . . . . . . . . . Parts Repaired 9 | . . . 1 . . . 7 . . . . . . . . . . . . 1 . . . . . . . Time 355 | . . . 26 . . . 282 . . . . . . . . . . . . 47 . . . . . . . Parts Recycled . | . . . . . . . . . . . . . . . . . . . . . . . . . . . . Recycled Matter . | . . . . . . . . . . . . . . . . . . . . . . . . . . . . Retrieved Matter . | . . . . . . . . . . . . . . . . . . . . . . . . . . . . Retrieved Components 12 | . 3 . 9 . . . . . . . . . . . . . . . . . . . . . . . . Parts Scanalyzed 8 | . . . 4 . . . 4 . . . . . . . . . . . . . . . . . . . . Part Schematics Acquired 8 | . . . 4 . . . 4 . . . . . . . . . . . . . . . . . . . . Parts Damaged . | . . . . . . . . . . . . . . . . . . . . . . . . . . . . Bothacking | -11 -10 -10 -9 -9 -9 -8 -8 -8 -8 -8 -7 -7 -6 -6 -6 -6 -5 -5 -5 -4 -4 -4 -4 -3 -3 -2 -1 ------------ Run | Yrd Mat Min Mat Min Exi Min Mat Gar Mat Gar Fac DSF Fac Gar Fac DSF Fac Was Fac Fac Was Fac DSF Res Gar Res Acc Used RIF Installer 2 | . . . . . . . . 1 . . . . . 1 . . . . . . . . . . . . . Hotswap 1 | . . . . . . . . . . . . . . 1 . . . . . . . . . . . . . Robots Hacked 15 | . . . . . 4 . . . . . . . . 2 1 . . 6 1 . . . . . . . 1 Non-combat 6 | . . . . . 3 . . . . . . . . . 1 . . . 1 . . . . . . . 1 Combat 9 | . . . . . 1 . . . . . . . . 2 . . . 6 . . . . . . . . . Robot Hacks Applied 18 | . . . . . 4 . . . . . . . . 3 1 . . 7 2 . . . . . . . 1 parse_system 8 | . . . . . 4 . . . . . . . . 2 . . . 1 1 . . . . . . . . map_walls 2 | . . . . . . . . . . . . . . . 1 . . . 1 . . . . . . . . map_route 1 | . . . . . . . . . . . . . . . . . . . . . . . . . . . 1 ignore_targets 6 | . . . . . . . . . . . . . . . . . . 6 . . . . . . . . . formatsys_high 1 | . . . . . . . . . . . . . . 1 . . . . . . . . . . . . . Relay Couplers Released 13 | . . . . . . . . 4 . . . . . 4 . . . . . . . . . . 5 . . Machine Destruction 13 | . . . . . . . . 4 . . . . . 4 . . . . . . . . . . 5 . . Attached 5 | . . . . . . . . . . . . . . 2 1 . . . . . . . . . 1 . 1 Fabnet Peak Effective % . | . . . . . . . . . . . . . . . . . . . . . . . . . . . . Robots Rewired 4 | . . . . . . . . 2 . . . . . 1 . . . . . . . . . . 1 . . Allies Hacked 1 | . . . . . . . . . . . . . . . . . . . . . . . . . 1 . . Hacks Repelled . | . . . . . . . . . . . . . . . . . . . . . . . . . . . . Allies | -11 -10 -10 -9 -9 -9 -8 -8 -8 -8 -8 -7 -7 -6 -6 -6 -6 -5 -5 -5 -4 -4 -4 -4 -3 -3 -2 -1 -------- Run | Yrd Mat Min Mat Min Exi Min Mat Gar Mat Gar Fac DSF Fac Gar Fac DSF Fac Was Fac Fac Was Fac DSF Res Gar Res Acc Total Allies 36 | . . 2 . 3 . . 1 3 . . . . . 4 1 . . 1 . . 20 . . . 1 . . Largest Group 20 | . . 2 . 3 3 3 1 2 . . . . . 2 3 3 3 4 4 1 20 20 20 12 8 7 . Highest-Rated Group 733 | . . 47 . 40 40 40 15 178 . . . . . 218 232 232 222 213 215 100 733 733 733 472 415 292 . Highest-Rated Ally 178 | . . 31 . 16 16 16 15 178 . . . . . 119 119 119 119 119 119 100 50 50 50 50 116 46 . Total Orders 16 | . . . . . . . . 2 . . . . . . 4 2 . . 1 . . . . . . . 7 STAY 2 | . . . . . . . . 1 . . . . . . 1 . . . . . . . . . . . . FOLLOW 3 | . . . . . . . . 1 . . . . . . 2 . . . . . . . . . . . . AID 4 | . . . . . . . . . . . . . . . 1 2 . . 1 . . . . . . . . EXPLORE 5 | . . . . . . . . . . . . . . . . . . . . . . . . . . . 5 RETURN 2 | . . . . . . . . . . . . . . . . . . . . . . . . . . . 2 Ally Attacks 364 | . . 8 . 8 . 9 . 24 . . . . . 11 1 15 3 54 13 . . . 60 62 44 52 . Total Damage 12317 | . . 63 . 75 . 118 . 701 . . . . . 504 34 620 102 1831 530 . . . 2543 3216 847 1133 . Kills 56 | . . 1 . 2 . 1 . 5 . . . . . 2 1 5 1 4 3 . . . 10 13 6 2 . Allies Corrupted . | . . . . . . . . . . . . . . . . . . . . . . . . . . . . Allies Melted 2 | . . . . . . . . . . . . . . . . . . . . . . . . 1 1 . . Intel | -11 -10 -10 -9 -9 -9 -8 -8 -8 -8 -8 -7 -7 -6 -6 -6 -6 -5 -5 -5 -4 -4 -4 -4 -3 -3 -2 -1 ------- Run | Yrd Mat Min Mat Min Exi Min Mat Gar Mat Gar Fac DSF Fac Gar Fac DSF Fac Was Fac Fac Was Fac DSF Res Gar Res Acc Active Infowar (turns) 6402 | 10 30 . . 1 . . . 99 11 . 489 322 299 822 176 40 . . 144 774 429 26 158 303 263 1594 412 Sensors 2 | . . . . 1 . . . . . . . . . . . . . . . . . . 1 . . . . Structural 13 | . 13 . . . . . . . . . . . . . . . . . . . . . . . . . . Seismic 36 | 10 17 . . . . . . . . . . . . . . 9 . . . . . . . . . . . Cloaking 2748 | . . . . . . . . . . . . 233 . . . . . . 49 626 301 26 157 239 93 1024 . Spoofing 2 | . . . . . . . . . . . . . . 2 . . . . . . . . . . . . . Jamming 5805 | . . . . . . . . 99 11 . 489 89 299 820 176 40 . . 95 773 287 . 55 303 263 1594 412 Robot Analysis Total 3 | . . . 3 . . . . . . . . . . . . . . . . . . . . . . . . Derelict Logs Recovered 4 | . . 3 . 1 . . . . . . . . . . . . . . . . . . . . . . . Drone Launches 4 | . . . . . . . . . . . . . . . . . . . . . . . . . . . 4 Drone Recoveries 2 | . . . . . . . . . . . . . . . . . . . . . . . . . . . 2 Exploration | -11 -10 -10 -9 -9 -9 -8 -8 -8 -8 -8 -7 -7 -6 -6 -6 -6 -5 -5 -5 -4 -4 -4 -4 -3 -3 -2 -1 ------------- Run | Yrd Mat Min Mat Min Exi Min Mat Gar Mat Gar Fac DSF Fac Gar Fac DSF Fac Was Fac Fac Was Fac DSF Res Gar Res Acc Turns Passed 20379 | 74 2108 944 1823 1031 557 1087 2578 1289 165 733 499 614 459 1430 181 194 127 135 193 954 429 26 158 303 263 1613 412 Spaces Moved 9407 | 41 838 449 739 522 285 527 1137 686 102 215 197 230 126 621 73 88 101 78 88 471 213 12 86 219 168 810 285 Core 5 | 3 2 . . . . . . . . . . . . . . . . . . . . . . . . . . Treads . | . . . . . . . . . . . . . . . . . . . . . . . . . . . . Legs 9350 | 38 784 449 739 522 285 527 1137 686 102 215 197 230 126 621 73 88 101 78 88 471 213 12 86 219 168 810 285 Wheels . | . . . . . . . . . . . . . . . . . . . . . . . . . . . . Hover 52 | . 52 . . . . . . . . . . . . . . . . . . . . . . . . . . Flight . | . . . . . . . . . . . . . . . . . . . . . . . . . . . . Fastest Speed 50 | 50 120 190 120 190 190 190 90 122 120 120 120 120 120 120 120 120 120 120 120 110 113 113 113 113 113 113 120 Average Speed 149 | 114 182 190 184 190 190 190 111 123 120 120 167 150 173 175 168 181 120 120 120 115 113 113 113 113 113 124 120 Slowest Speed 300 | 120 300 190 190 190 190 190 190 192 122 120 190 190 209 206 203 203 176 120 125 215 116 113 113 113 113 196 120 Overloaded Moves . | . . . . . . . . . . . . . . . . . . . . . . . . . . . . Propulsion Burnouts . | . . . . . . . . . . . . . . . . . . . . . . . . . . . . Robots Hopped 1 | . . . . . . . . . . . . . . . . . . . . 1 . . . . . . . Potential Cave-ins . | . . . . . . . . . . . . . . . . . . . . . . . . . . . . Cave-ins Triggered . | . . . . . . . . . . . . . . . . . . . . . . . . . . . . Exploration Rate (%) 47 | 3 95 83 87 90 69 91 79 84 12 35 6 94 3 61 4 76 4 72 3 13 85 1 77 10 47 28 11 Regions Visited 27 Branch Regions 4 Pre-discovered Areas 6 | . . 1 3 . 1 . 1 . . . . . . . . . . . . . . . . . . . . Known Exits Taken 8 | . . . . . . . 1 . 1 . 1 . 1 . 1 . . . . . . 1 . 1 . 1 . Unknown Exits Taken 8 | 1 1 1 1 1 1 1 . . . . . . . . . . . . 1 . . . . . . . . Scrap Searched 3 | . . 1 . 1 . 1 . . . . . . . . . . . . . . . . . . . . . Spaces Dug 225 | . 6 . . 44 . . 42 19 . . . 5 1 7 . . . . . . . . . . . 90 11 Terrain Destroyed 507 | . 31 2 17 44 . 82 54 42 . . . 6 2 18 . . . . . 1 . . 2 1 1 172 32 Melee 12 | . . . . . . . 3 1 . . . 5 1 2 . . . . . . . . . . . . . Projectile 68 | . . . . . . . . . . . . 1 1 4 . . . . . . . . 2 1 . 44 15 AOE 424 | . 31 2 17 44 . 82 51 41 . . . . . 11 . . . . . . . . . . . 128 17 Terrain Rammed . | . . . . . . . . . . . . . . . . . . . . . . . . . . . . Walls Destroyed . | . . . . . . . . . . . . . . . . . . . . . . . . . . . . Machines Disabled . | . . . . . . . . . . . . . . . . . . . . . . . . . . . . Actions | -11 -10 -10 -9 -9 -9 -8 -8 -8 -8 -8 -7 -7 -6 -6 -6 -6 -5 -5 -5 -4 -4 -4 -4 -3 -3 -2 -1 --------- Run | Yrd Mat Min Mat Min Exi Min Mat Gar Mat Gar Fac DSF Fac Gar Fac DSF Fac Was Fac Fac Was Fac DSF Res Gar Res Acc Total 14174 | 57 1173 517 1044 550 300 572 2262 951 131 685 356 414 339 841 129 111 108 110 151 778 401 24 139 261 206 1225 339 Wait 2969 | 1 119 13 136 7 . 1 905 70 15 454 129 91 181 79 48 9 . 9 14 230 153 13 34 26 10 213 9 Move 9381 | 40 837 448 738 521 284 526 1136 685 102 214 196 229 126 620 72 87 101 77 87 469 212 11 85 218 167 809 284 Hop 1 | . . . . . . . . . . . . . . . . . . . . 1 . . . . . . . Pick Up 176 | 5 23 7 15 2 1 . 27 10 2 2 6 7 4 9 . 3 3 2 7 7 5 . 4 3 . 19 3 Fast Attach 122 | 7 18 . 5 2 2 . 15 1 . 2 1 4 2 8 . 3 . 1 5 9 9 . 2 1 4 17 4 Attach 87 | . 6 2 5 . 1 . 8 5 1 2 5 3 6 4 2 1 2 1 6 2 1 . . 2 . 17 5 Detach 10 | . 1 . . . . . 1 . . . . . . . 1 1 . . . . . . . . . 4 2 Swap 238 | . 15 12 18 6 4 12 29 25 3 2 5 23 7 18 3 1 1 2 6 12 5 . 4 3 4 15 3 Drop 243 | . 20 13 30 4 4 5 30 11 1 4 8 12 4 19 . 2 1 5 13 6 16 . 6 3 4 17 5 Fire 826 | 4 133 22 96 8 . 28 105 101 7 4 5 18 8 58 3 4 . 13 13 42 . . 4 5 17 104 24 Melee 61 | . . . . . 4 . 3 12 . . 1 25 1 15 . . . . . . . . . . . . . Ram . | . . . . . . . . . . . . . . . . . . . . . . . . . . . . Kick 14 | . . . . . . . 3 1 . . . . . . . . . . . . . . . . . 10 . Crush . | . . . . . . . . . . . . . . . . . . . . . . . . . . . . Escape Stasis 18 | . . . . . . . . 7 . . . 1 . 10 . . . . . . . . . . . . . Rewire 23 | . . . . . . . . 22 . . . 1 . . . . . . . . . . . . . . . Trap 1 | . . . 1 . . . . . . . . . . . . . . . . . . . . . . . . Miscellaneous 4 | . 1 . . . . . . 1 . 1 . . . 1 . . . . . . . . . . . . . Route ------- -11/Scrapyard -10/Materials (discovered 6 exits: *Mat x3 / *Min x2 / [*Sub]) -10/Mines (discovered 2 exits: *Mat x2) -9/Materials (discovered 4 exits: *Mat x2 / [*Min x2]) -9/Mines (discovered 3 exits: *Mat x2 / *Exi) -9/Exiles -8/Mines -8/Materials (discovered 4 exits: *Fac x3 / Gar) -8/Garrison (discovered 3 exits: *Mat x3) -8/Materials -8/Garrison -7/Factory (discovered 2 exits: Low / DSF) -7/DSF -6/Factory -6/Garrison (discovered 3 exits: *Fac x3) -6/Factory -6/DSF -5/Factory -5/Waste -5/Factory -4/Factory -4/Waste -4/Factory -4/DSF -3/Research -3/Garrison -2/Research (discovered 4 exits: *Acc x3 / [*Tes]) -1/Access To Epsilon Eridani History --------- Turn | Location | Event 2 | -11/Scrapyard | Met Revision 17 39 | -11/Scrapyard | Discovered new exit (range 13) 75 | -11/Scrapyard | Entered Materials 198 | -10/Materials | Discovered new exit (range 11) 273 | -10/Materials | Discovered new exit (range 15) 301 | -10/Materials | Build established: Mutant 747 | -10/Materials | Discovered new exit (range 15) 985 | -10/Materials | Discovered new exit (range 13) 1175 | -10/Materials | Derelicts attacked the area 1493 | -10/Materials | Discovered new exit (range 10) 1562 | -10/Materials | Core integrity fell below 50% 1571 | -10/Materials | Lost 3 parts (1u2w) 1832 | -10/Materials | Discovered new exit (range 14) 2183 | -10/Materials | Entered Mines 2196 | -10/Mines | Met a Derelict bent on vengeance 2267 | -10/Mines | Learned Materials garrison access intel 2581 | -10/Mines | Learned 2 Materials zone layouts 2596 | -10/Mines | Learned location of Zion (-6) 2612 | -10/Mines | Met a Derelict shopkeep closing up shop 2703 | -10/Mines | Discovered new exit (range 10) 2812 | -10/Mines | Discovered new exit (range 5) 2960 | -10/Mines | Excavation squad dispatched 2960 | -10/Mines | A large section of the Mines collapsed 3053 | -10/Mines | Found a hidden stash of uninstalled traps 3127 | -10/Mines | Entered Materials 3127 | -9/Materials | Evolved 2 slots: Propulsion x1, Weapon x1 3256 | -9/Materials | Repaired Grenade Launcher 3431 | -9/Materials | Build established: Scavenger-Tank 3632 | -9/Materials | Learned Storage stockpile data 3658 | -9/Materials | Learned Storage trap positions 3676 | -9/Materials | Learned 8 Materials zone layouts 3684 | -9/Materials | Learned location of 1 exit from Recycling 3705 | -9/Materials | Learned 4 Materials zone layouts 3922 | -9/Materials | Discovered new exit (range 13) 4115 | -9/Materials | Discovered new exit (range 10) 4317 | -9/Materials | Build established: Tank 4660 | -9/Materials | Discovered new exit (range 5) 4708 | -9/Materials | Discovered new exit (range 16) 4869 | -9/Materials | Central database locked down 4950 | -9/Materials | Entered Mines 5021 | -9/Mines | Learned Materials terminal intel 5070 | -9/Mines | A weapon hastily lodged in a ceiling crevice suddenly fell to the ground 5195 | -9/Mines | Received a Rocket Launcher from a helpful Derelict 5290 | -9/Mines | Found a damaged Exp. Sensor Array with a note attached 5295 | -9/Mines | Found Prototype Device 5295 | -9/Mines | Identified Exp. Sensor Array 5486 | -9/Mines | Assisted by bots powering up and referring to "LRC-V3" 5609 | -9/Mines | Deemed a non-threat by the Exiles lab entrance 5609 | -9/Mines | Discovered new exit (range 5) 5645 | -9/Mines | Discovered new exit (range 9) 5653 | -9/Mines | Discovered new exit (range 10) 5981 | -9/Mines | Entered Exiles 5981 | -9/Exiles | Accompanied by 3 allies 6033 | -9/Exiles | Met 8R-AWN 6067 | -9/Exiles | Met EX-HEX 6136 | -9/Exiles | Met EX-DEC 6223 | -9/Exiles | Met EX-BIN 6250 | -9/Exiles | Aligned with FarCom system 6252 | -9/Exiles | Given EX-Vault access code 6272 | -9/Exiles | Build established: Mutant 6298 | -9/Exiles | Opened EX-Vault 6310 | -9/Exiles | Found Firepult 6351 | -9/Exiles | Warned to stay clear of 0b10 Research branches 6520 | -9/Exiles | Discovered new exit (range 10) 6538 | -9/Exiles | Left Exiles lab with Firepult 6538 | -9/Exiles | Entered Mines 6538 | -8/Mines | Accompanied by 3 allies 6587 | -8/Mines | Lost 3 allies 6841 | -8/Mines | Build established: Skirmisher 7399 | -8/Mines | Core integrity fell below 50% 7593 | -8/Mines | Discovered new exit (range 14) 7625 | -8/Mines | Entered Materials 7625 | -8/Materials | Evolved 2 slots: Propulsion x1, Utility x1 7626 | -8/Materials | Identified exit to Factory 7627 | -8/Materials | Loaded intel: 12 terminal locations 7628 | -8/Materials | Loaded intel: 1 garrison access location 7913 | -8/Materials | Build established: Scavenger-Tank 8351 | -8/Materials | Lost 3 parts (1n2w) 8644 | -8/Materials | Learned location of Lower Caves (-7) 8661 | -8/Materials | Build established: Scavenger-Skirmisher 8716 | -8/Materials | Learned Storage emergency access door positions 8779 | -8/Materials | Learned Recycling recycling unit intel 8834 | -8/Materials | Learned Factory fabricator intel 8877 | -8/Materials | Learned 2 Lower Caves zone layouts 9393 | -8/Materials | Repaired VSS Leg 9447 | -8/Materials | Repaired Hvy. Ion Engine 9555 | -8/Materials | Repaired Imp. Light Armor Plating 9594 | -8/Materials | Repaired VSS Leg 9658 | -8/Materials | Repaired Enh. Autogun 9699 | -8/Materials | Repaired Hrd. Medium Armor Plating 9966 | -8/Materials | Repaired Hrd. Medium Armor Plating 10006 | -8/Materials | Identified exit to Garrison 10051 | -8/Materials | Build established: Skirmisher 10170 | -8/Materials | Garrison activated, responded to threat 10203 | -8/Materials | Entered Garrison 10203 | -8/Garrison | Accompanied by 1 ally 10251 | -8/Garrison | Triggered checkpoint 10270 | -8/Garrison | Triggered checkpoint 10405 | -8/Garrison | Core integrity fell below 50% 10449 | -8/Garrison | Garrison Relay disabled 10461 | -8/Garrison | Triggered checkpoint 10526 | -8/Garrison | Discovered new exit (range 3) 10721 | -8/Garrison | Triggered checkpoint 10850 | -8/Garrison | Discovered new exit (range 9) 11138 | -8/Garrison | Rescued AZ-K3N 11165 | -8/Garrison | Triggered checkpoint 11275 | -8/Garrison | Triggered checkpoint 11381 | -8/Garrison | Discovered new exit (range 13) 11432 | -8/Garrison | Installed Relay Interface Framework 11459 | -8/Garrison | Triggered checkpoint 11492 | -8/Garrison | Entered Materials 11657 | -8/Materials | Identified exit to Garrison 11657 | -8/Materials | Entered Garrison 12379 | -8/Garrison | Discovered exit to Factory (range 10) 12390 | -8/Garrison | Entered Factory 12390 | -7/Factory | Evolved 2 slots: Utility x1, Weapon x1 12391 | -7/Factory | Identified exit to Lower Caves 12392 | -7/Factory | Loaded intel: 6 fabricator locations 12887 | -7/Factory | Identified exit to DSF 12889 | -7/Factory | Entered DSF 12932 | -7/DSF | Additional patrols routed to DSF 13404 | -7/DSF | Sterilization system engaged 13424 | -7/DSF | Ambient heat levels rising (+10) 13439 | -7/DSF | Ambient heat levels rising (+10) 13454 | -7/DSF | Ambient heat levels rising (+10) 13469 | -7/DSF | Ambient heat levels rising (+10) 13484 | -7/DSF | Ambient heat levels rising (+10) 13491 | -7/DSF | Discovered new exit (range 9) 13499 | -7/DSF | Ambient heat levels rising (+10) 13503 | -7/DSF | Entered Factory 13503 | -6/Factory | Evolved 2 slots: Power x1, Utility x1 13524 | -6/Factory | Build established: Scavenger-Skirmisher 13605 | -6/Factory | Fabricated Biometal Leg? 13672 | -6/Factory | Fabricated Lgt. Armored Exoskeleton (x1) 13715 | -6/Factory | Fabricated Lgt. Armored Exoskeleton (x1) 13764 | -6/Factory | Fabricated Lgt. Armored Exoskeleton? 13962 | -6/Factory | Identified exit to Garrison 13962 | -6/Factory | Entered Garrison 14016 | -6/Garrison | Triggered checkpoint 14037 | -6/Garrison | Garrison Relay disabled 14233 | -6/Garrison | Discovered new exit (range 45) 14233 | -6/Garrison | Discovered new exit (range 34) 14233 | -6/Garrison | Discovered new exit (range 55) 14428 | -6/Garrison | Triggered checkpoint 14527 | -6/Garrison | Expanded RIF knowledge: Hotswap 14528 | -6/Garrison | Build established: Skirmisher 14694 | -6/Garrison | Triggered checkpoint 14731 | -6/Garrison | Found embedded Infiltrators 14786 | -6/Garrison | Spotted B-75 Beast 14825 | -6/Garrison | P-60 Hacker assimilated allied O5-01D(x) 14896 | -6/Garrison | Found Relay Coupler [Proto] 14901 | -6/Garrison | Found Relay Coupler [Proto] 15332 | -6/Garrison | Spotted Executioner 15340 | -6/Garrison | Assimilated Executioner with formatsys_high 15356 | -6/Garrison | Rewired Striker 15392 | -6/Garrison | Entered Factory 15392 | -6/Factory | Accompanied by 2 allies 15447 | -6/Factory | Fabricated M-13 Machinist (x1) 15572 | -6/Factory | Identified exit to DSF 15573 | -6/Factory | Entered DSF 15573 | -6/DSF | Accompanied by 3 allies 15626 | -6/DSF | Discovered new exit (range 16) 15636 | -6/DSF | Additional patrols routed to DSF 15767 | -6/DSF | Entered Factory 15767 | -5/Factory | Accompanied by 3 allies 15767 | -5/Factory | Evolved 2 slots: Propulsion x1, Utility x1 15894 | -5/Factory | Sucked down chute 15894 | -5/Factory | Entered Waste 15895 | -5/Waste | Met a frightened Derelict 15904 | -5/Waste | Spotted C-40 Crusher 15909 | -5/Waste | EMP discharged 15909 | -5/Waste | System corruption reached 10% 15913 | -5/Waste | Spotted C-40 Crusher 15938 | -5/Waste | Spotted C-40 Crusher 15943 | -5/Waste | Spotted C-40 Crusher 15946 | -5/Waste | Spotted C-40 Crusher 15949 | -5/Waste | 3 allies followed down the chute 15955 | -5/Waste | Allies destroyed C-40 Crusher 15968 | -5/Waste | Spotted C-40 Crusher 15982 | -5/Waste | Discovered new exit (range 16) 16009 | -5/Waste | EMP discharged 16011 | -5/Waste | Destroyed C-40 Crusher 16029 | -5/Waste | Entered Factory 16029 | -5/Factory | Accompanied by 4 allies 16177 | -5/Factory | Lost 3 allies 16179 | -5/Factory | Discovered new exit (range 15) 16211 | -5/Factory | Spotted B-75 Beast 16222 | -5/Factory | Entered another Factory area 16222 | -4/Factory | Accompanied by 1 ally 16222 | -4/Factory | Evolved 2 slots: Propulsion x1, Utility x1 16285 | -4/Factory | Identified exit to DSF 16423 | -4/Factory | Destroyed *OwO 16429 | -4/Factory | Found Corrupted Exp. Core Analyzer 16491 | -4/Factory | Build established: Infiltrator-Skirmisher 17059 | -4/Factory | Repaired Broken Hvy. Armored Exoskeleton 17098 | -4/Factory | Build established: Scavenger-Skirmisher 17176 | -4/Factory | Sucked down chute 17176 | -4/Factory | Entered Waste 17177 | -4/Waste | Joined by Warlord forces that had cleared the area 17427 | -4/Waste | Found Prototype Device 17427 | -4/Waste | Identified Exp. Transmission Jammer 17548 | -4/Waste | Discovered new exit (range 13) 17605 | -4/Waste | Entered Factory 17605 | -4/Factory | Accompanied by 20 allies 17618 | -4/Factory | Identified exit to DSF 17631 | -4/Factory | Entered DSF 17631 | -4/DSF | Accompanied by 20 allies 17654 | -4/DSF | Discovered new exit (range 16) 17655 | -4/DSF | Additional patrols routed to DSF 17694 | -4/DSF | Lost 5 allies 17767 | -4/DSF | Lost 3 allies 17789 | -4/DSF | Entered Research 17789 | -3/Research | Accompanied by 12 allies 17789 | -3/Research | Evolved 2 slots: Utility x2 17891 | -3/Research | Lost 4 allies 18028 | -3/Research | Spotted B-86 Titan 18035 | -3/Research | Destroyed B-86 Titan 18081 | -3/Research | Build established: Infiltrator-Gunner 18086 | -3/Research | Identified exit to Garrison 18092 | -3/Research | Entered Garrison 18092 | -3/Garrison | Accompanied by 7 allies 18101 | -3/Garrison | Phase Generator disabled 18102 | -3/Garrison | Met a derelict Sapper fleeing the area 18175 | -3/Garrison | Triggered checkpoint 18249 | -3/Garrison | Garrison Relay disabled 18272 | -3/Garrison | Discovered new exit (range 8) 18287 | -3/Garrison | Spotted B-90 Cyclops 18290 | -3/Garrison | Rewired B-86 Titan 18297 | -3/Garrison | Allies destroyed B-90 Cyclops 18299 | -3/Garrison | Spotted B-90 Cyclops 18305 | -3/Garrison | Allies destroyed B-90 Cyclops 18355 | -3/Garrison | Entered Research 18355 | -2/Research | Accompanied by 7 allies 18355 | -2/Research | Evolved 2 slots: Power x1, Utility x1 18482 | -2/Research | Build established: Infiltrator-Skirmisher 18539 | -2/Research | Destroyed 7 combat bots 18563 | -2/Research | Lost 3 allies 18653 | -2/Research | Lost 3 allies 18793 | -2/Research | Found Prototype Launcher 18793 | -2/Research | Identified Gui. Micro-nuke Launcher 18855 | -2/Research | First assault squad dispatched 18888 | -2/Research | Spotted B-90 Cyclops 18927 | -2/Research | Identified exit to Access 19304 | -2/Research | Discovered new exit (range 7) 19498 | -2/Research | Destroyed 8 combat bots 19671 | -2/Research | System corruption reached 10% 19734 | -2/Research | Lost 6 parts (1p1n3u1w) 19783 | -2/Research | Found Prototype Launcher 19968 | -2/Research | Entered Access 19968 | -1/Access | Evolved 2 slots: Propulsion x1, Utility x1 19969 | -1/Access | Identified Hellfire Missile Launcher 19992 | -1/Access | Build established: Scavenger-Gunner 20218 | -1/Access | First assault squad dispatched 20252 | -1/Access | Energy Cycler disabled 20373 | -1/Access | Discovered new exit (range 6) 20380 | *** | Escaped! Last Messages --------------- 20214_ K-01 Serf cleans the Wave Collapse Detector. 20218_ ALERT: Unidentified disturbance in Zone 7A, assault force dispatched. 20225_ Discarded Authchip [Propulsion]. 20226_ Acquired HERF Cannon. 20229_ U-05 Engineer builds a Wall. 20252_ ALERT: Power surge detected, dispatching additional patrols. 20252_ Energy Cycler explodes. 20252_ Destroyed Welding Torch. 20253_ U-05 Engineer call for reinforcements jammed. 20290_ ALERT: Security rotation in progress. 20325_ ALERT: Potential suspicious activity detected, Programmers report to Access Zone 1O. 20369_ Connecting with Terminal... 20373_ The Access Shell folds into the floor. 20373_ EXIT=FOUND Map ----- +----------------------------------------------------+ | ?????????????????????????????????????????????????? | | ?????????????????????????????????????????????????? | | ?????????????????????????????????????????????????? | | ?????????????????????????????????????????????????? | | ?????????????????????????????????????????????????? | | ?????????????????????????????????????????????????? | | ?????????????????????????????????????????????????? | | ?????????????????????????????????????????????????? | | ?????????????????????????????????????????????????? | | ?????????????????????????????????????????????????? | | ?????????????????????????????????????????????????? | | ?????????????????????????????????????????????????? | | ?????????????????????????????????????????????????? | | ?????????????????????????????????????????????????? | | ?????????????????????BB????BB????????????????????? | | ?????????????????????BB????BB????????????????????? | | ?????????????????????????????????????????????????? | | ?????????????????????????????????????????????????? | | ?????????????????????????????????????????????????? | | ?????????????????????????????????????????????????? | | ???????????????????#""""""""""#??????????????????? | | ???????????????????# #??????????????????? | | ???????????????????# #??????????????????? | | ???????????????????# #??????????????????? | | ???????#???????????# "" #??????????????????? | | ?????? #???????????# "@ #??????????????????? | | ????? #???????????# #??????????????????? | | ???? #???????????# #??????????????????? | | ??? #???????????# #??????????????????? | | ??? #??????????## ##?????????????????? | | """ #??????????# #?????????????????? | | """ #??????????##"" ##?????????????????? | | "S #???????????#"" #??????????????????? | | "" #???????????#"" #??????????????????? | | "" ????????????#T #??????????????????? | | ??????????????#"" #??????????????????? | | ????????????????#"" #??????????????????? | | +###################"" #??????????????????? | | ???????????? | | ???????????? | | ###################################+#########????? | | ????# #???????????????? #????? | | ????# ] #???????????????? #????? | | ????# #???????????????? #????? | | ????# ###########????? ##???? | | ????# + ##???? "#???? | | ???##########+#### "###?? "##??# | | ???# #### #""### " #?? | | #### + ## + " #?? | | ! # #### ## + " #??? | +----------------------------------------------------+ Best States ------------- Heat Dissipation 102 Energy Generation 54 Energy Capacity 1300 Matter Stores 300 Matter Capacity 300 Sight Range 16 Terrain Scan Density 10 Jamming Range 16 Cloak Strength 6 EM Shielding 3 Corruption Block 20 Armor Coverage 600 Resistance: TH 10 Weapon Cycling 25 Evasion (%) 84 Target Analysis 8 Core Analysis 11 Salvage Targeting 2 Offensive Hacking 12 Defensive Hacking 10 Relay Coupler Types 1 Relay Coupler Value 31 Authchip Count 4 Item Schematics ----------------- Huge Storage Unit | -10/Materials | Hacked Hcp. Storage Unit | -10/Materials | Hacked Hacking Suite | -9/Materials | Scanalyzed Multitool | -9/Materials | Scanalyzed Lgt. Armor Plating | -9/Materials | Scanalyzed Rocket Launcher | -9/Materials | Scanalyzed Imp. Aluminum Leg | -9/Materials | Hacked Imp. Carbon-fiber Leg | -8/Materials | Scanalyzed Hrd. Medium Armor Plating | -8/Materials | Scanalyzed Transmission Jammer | -8/Materials | Scanalyzed Exp. Sensor Array | -8/Materials | Scanalyzed Lgt. Armored Exoskeleton | -8/Garrison | Hacked Robot Schematics ------------------ M-13 Machinist | -10/Materials | Hacked Fabricated ------------ Biometal Leg | x2 | -6/Factory | Preloaded, Authchip Lgt. Armored Exoskeleton | x1 | -6/Factory | Authchip Lgt. Armored Exoskeleton | x1 | -6/Factory | Authchip Lgt. Armored Exoskeleton | x1 | -6/Factory M-13 Machinist | x1 | -6/Factory | Authchip Repaired ---------- Grenade Launcher | 38% | -9/Materials VSS Leg | 14% | -8/Materials Hvy. Ion Engine | 7% | -8/Materials Imp. Light Armor Plating | 33% | -8/Materials VSS Leg | 34% | -8/Materials Enh. Autogun | 68% | -8/Materials Hrd. Medium Armor Plating | 65% | -8/Materials Hrd. Medium Armor Plating | 72% | -8/Materials Hvy. Armored Exoskeleton | 41% | -4/Factory | Broken Alien Tech Used ----------------- None Achievements -------------- None Challenges ------------ None Game ------ Seed HardenedModifiedWheel Manual? 0 Play Time 04:12:45 Cumulative 835.4 hours Start 2025.08.29 @ 06:13:59 End 2025.08.30 @ 00:33:55 Sessions 5 Manual Loads 0 Difficulty Rogue Special Mode None Game No. 315 Rogue 311 Adventurer 4 Explorer 0 Win Type 0 Total 16 Types 10/1/1/1/0/1/0/0/1/1 Lore% 95 Gallery% 90 Achievement% 87 Wizard Run 0 Options --------- Layout 2 ASCII 0 Keyboard 0 Movement Numpad Keybinds 0 Fullscreen 2 Font 24/Smallcaps Map View 50x44 Zoom Use 0% Tactical HUD 1 Map Filters NONE Filters NONE Steam 1 RUN: f9b2d51a-c441-46b5-a164-1547e06c5f8e